fUST/lending_fUST_20250514
["ID","MTS","AMOUNT","RATE_DAILY","PERIOD"]
[361077969,1747234246716,-509.77833502,0.00013888,2]
[361077971,1747234246726,-253.50472954,0.00013888,2]
[361077974,1747234246736,-4633.67925261,0.000139,2]
[361077976,1747234246746,-151.0,0.00013972,2]
[361077978,1747234246755,-400.0,0.00013972,2]
[361077980,1747234246764,-400.0,0.00013972,2]
[361077982,1747234246772,-10108.61,0.00013972,2]
[361077984,1747234246781,-500.0,0.00013986,2]
[361077986,1747234246791,-500.0,0.00013986,2]
[361077988,1747234246800,-500.0,0.00013986,2]
[361077990,1747234246810,-500.0,0.00013986,2]
[361077992,1747234246819,-500.0,0.00013986,2]
[361077994,1747234246831,-500.0,0.00013986,2]
[361077996,1747234246840,-500.0,0.00013986,2]
[361077998,1747234246850,-500.0,0.00013986,2]
[361078000,1747234246859,-500.0,0.00013986,2]
[361078002,1747234246868,-503.51089266,0.00014017,2]
[361078004,1747234246877,-162.08305964,0.00014033,2]
[361078006,1747234246887,-500.0,0.00014033,2]
[361078008,1747234246896,-500.0,0.00014033,2]
[361078010,1747234246906,-500.0,0.00014033,2]
[361078012,1747234246915,-500.0,0.00014033,2]
[361078014,1747234246924,-500.0,0.00014033,2]
[361078016,1747234246934,-151.0,0.00014113,2]
[361078018,1747234246943,-400.0,0.00014246,2]
[361078020,1747234246952,-400.0,0.00014246,2]
[361078022,1747234246961,-10108.61,0.00014246,2]
[361078024,1747234246971,-4633.67925242,0.00014383,2]
[361078026,1747234246980,-400.0,0.0001452,2]
[361078028,1747234246989,-400.0,0.0001452,2]
[361078029,1747234246998,-10108.61,0.0001452,2]
[361078031,1747234247007,-400.0,0.00014794,2]
[361078034,1747234247016,-400.0,0.00014794,2]
[361078035,1747234247026,-10108.61,0.00014794,2]
[361078037,1747234247035,-4633.67925242,0.00014866,2]
[361078040,1747234247046,-260.42554023,0.00014989,2]
[361078041,1747234247055,-400.0,0.00015068,2]
[361078044,1747234247066,-400.0,0.00015068,2]
[361078046,1747234247076,-10108.61,0.00015068,2]
[361078048,1747234247085,-180.12,0.00015342,2]
[361078050,1747234247095,-400.0,0.00015342,2]
[361078052,1747234247104,-10108.61,0.00015342,2]
[361078054,1747234247113,-4633.67925242,0.00015348,2]
[361078056,1747234247122,-12627.42419379,0.00015552,2]
[361078058,1747234247132,-160.0,0.00015552,2]
[361078060,1747234247141,-160.0,0.00015552,2]
[361078062,1747234247150,-212.21045333,0.00015552,2]
[361078064,1747234247160,-160.0,0.00015552,2]
[361078066,1747234247169,-422.27619506,0.00015552,2]
[361078068,1747234247178,-160.0,0.00015552,2]
[361078070,1747234247187,-997.9747837,0.00015552,2]
[361078071,1747234247196,-400.0,0.00015616,2]
[361078073,1747234247205,-10108.61,0.00015616,2]
[361078075,1747234247215,-4633.67925242,0.00015831,2]
[361078077,1747234247224,-400.0,0.0001589,2]
[361078079,1747234247233,-10108.61,0.0001589,2]
[361078081,1747234247242,-400.0,0.00016164,2]
[361078083,1747234247251,-10108.61,0.00016164,2]
[361078085,1747234247260,-4633.67925242,0.00016314,2]
[361078087,1747234247270,-400.0,0.00016438,2]
[361078089,1747234247279,-10108.61,0.00016438,2]
[361078091,1747234247288,-400.0,0.00016712,2]
[361078093,1747234247297,-8780.79766667,0.00016712,2]
[361078095,1747234247309,-479.1530847,0.00016712,2]
[361078098,1747234247324,-848.65924863,0.00016712,2]
[361078100,1747234247333,-250.0,0.0001679,2]
[361078102,1747234247342,-1744.51650337,0.00016797,2]
[361078136,1747234247667,-0.0721491,0.00016797,2]
[361079004,1747235010580,-201.01492869,0.00012507,2]
[361079005,1747235012713,-12.2219665,0.00012507,2]
[361079006,1747235012739,-199.77052704,0.00012507,2]
[361079007,1747235014840,-168.19200212,0.00012507,2]
[361079009,1747235144384,1726.91,8.02e-05,2]
[361079052,1747235432496,-2636.9580161,0.00012507,2]
[361079054,1747235432506,-417.72230978,0.00012607,2]
[361079056,1747235432516,-300.0,0.00012672,2]
[361079058,1747235432526,-300.0,0.00012673,2]
[361079060,1747235432535,-300.0,0.00012673,2]
[361079062,1747235432545,-300.0,0.00012673,2]
[361079063,1747235432554,-300.0,0.00012673,2]
[361079065,1747235432564,-1200.0,0.00012673,2]
[361079067,1747235432573,-500.0,0.00012674,2]
[361079069,1747235432582,-500.0,0.00012674,2]
[361079071,1747235432592,-500.0,0.00012674,2]
[361079073,1747235432601,-434.72568906,0.00012674,2]
[361079075,1747235432611,-500.0,0.00012674,2]
[361079077,1747235432620,-500.0,0.00012674,2]
[361079079,1747235432630,-412.11319689,0.00012674,2]
[361079081,1747235432639,-500.0,0.00012674,2]
[361079083,1747235432650,-500.0,0.00012674,2]
[361079085,1747235432659,-201.06456968,0.00012674,2]
[361079087,1747235432668,-34073.95865744,0.00012675,2]
[361079090,1747235432681,-5120.66574361,0.00012675,2]
[361079092,1747235432691,-24900.0,0.00012675,2]
[361079093,1747235432700,-1494.0245981,0.00012696,2]
[361079095,1747235432709,-195.31915519,0.000129,2]
[361079097,1747235432718,-1201.64298429,0.00013529,2]
[361079100,1747235432727,-500.0,0.00013531,2]
[361079102,1747235432738,-500.0,0.00013531,2]
[361079104,1747235432747,-500.0,0.00013531,2]
[361079106,1747235432757,-501.22934475,0.00013531,2]
[361079108,1747235432766,-400.0,0.00013698,2]
[361079110,1747235432775,-400.0,0.00013698,2]
[361079112,1747235432784,-5054.31,0.00013698,2]
[361079114,1747235432793,-400.0,0.00013698,2]
[361079116,1747235432802,-400.0,0.00013698,2]
[361079118,1747235432812,-418.436577,0.00013699,2]
[361079120,1747235432821,-196.337772,0.00013699,2]
[361079122,1747235432830,-500.0,0.00013699,2]
[361079124,1747235432840,-500.0,0.00013699,2]
[361079126,1747235432854,-500.0,0.00013699,2]
[361079128,1747235432863,-500.0,0.00013699,2]
[361079130,1747235432872,-500.0,0.00013699,2]
[361079132,1747235432882,-500.0,0.00013699,2]
[361079133,1747235432893,-500.0,0.00013699,2]
[361079135,1747235432902,-500.0,0.00013699,2]
[361079138,1747235432913,-500.0,0.00013699,2]
[361079140,1747235432923,-500.0,0.00013699,2]
[361079142,1747235432933,-500.0,0.00013699,2]
[361079144,1747235432943,-500.0,0.00013699,2]
[361079146,1747235432951,-500.0,0.00013699,2]
[361079148,1747235432961,-500.0,0.00013699,2]
[361079150,1747235432970,-500.0,0.00013699,2]
[361079151,1747235432980,-500.0,0.00013699,2]
[361079153,1747235432989,-500.0,0.00013699,2]
[361079156,1747235432999,-500.0,0.00013699,2]
[361079158,1747235433009,-500.0,0.00013699,2]
[361079159,1747235433019,-500.0,0.00013699,2]
[361079162,1747235433029,-500.0,0.00013699,2]
[361079163,1747235433039,-500.0,0.00013699,2]
[361079166,1747235433049,-510.68747855,0.00013699,2]
[361079167,1747235433059,-500.0,0.00013699,2]
[361079170,1747235433069,-500.0,0.00013699,2]
[361079172,1747235433079,-500.0,0.00013699,2]
[361079174,1747235433089,-500.0,0.00013699,2]
[361079176,1747235433100,-500.0,0.00013699,2]
[361079178,1747235433110,-500.0,0.00013699,2]
[361079180,1747235433119,-500.0,0.00013699,2]
[361079181,1747235433129,-500.0,0.00013699,2]
[361079183,1747235433139,-500.0,0.00013699,2]
[361079185,1747235433149,-500.0,0.00013699,2]
[361079187,1747235433159,-500.0,0.00013699,2]
[361079189,1747235433169,-500.0,0.00013699,2]
[361079191,1747235433179,-500.0,0.00013699,2]
[361079193,1747235433190,-651.06874786,0.00013699,2]
[361079195,1747235433199,-500.0,0.00013699,2]
[361079197,1747235433210,-500.0,0.00013699,2]
[361079199,1747235433219,-500.0,0.00013699,2]
[361079201,1747235433230,-500.0,0.00013699,2]
[361079204,1747235433241,-500.0,0.00013699,2]
[361079206,1747235433250,-500.0,0.00013699,2]
[361079208,1747235433261,-500.0,0.00013699,2]
[361079209,1747235433270,-500.0,0.00013733,2]
[361079212,1747235433280,-181.22309401,0.00013733,2]
[361079213,1747235433290,-343.06011198,0.00013733,2]
[361079215,1747235433301,-269.96639808,0.00013733,2]
[361079217,1747235433311,-500.0,0.00013733,2]
[361079219,1747235433321,-340.44994791,0.00013733,2]
[361079221,1747235433331,-500.0,0.00013733,2]
[361079223,1747235433341,-500.0,0.00013733,2]
[361079225,1747235433351,-500.0,0.00013733,2]
[361079227,1747235433360,-500.0,0.00013733,2]
[361079229,1747235433370,-500.0,0.00013733,2]
[361079231,1747235433379,-500.0,0.00013733,2]
[361079233,1747235433390,-500.0,0.00013733,2]
[361079235,1747235433401,-500.0,0.00013733,2]
[361079237,1747235433411,-500.0,0.00013733,2]
[361079239,1747235433422,-490.37070545,0.0001375,2]
[361079241,1747235433433,-502.18083544,0.0001375,2]
[361079243,1747235433442,-190.11784872,0.00013825,2]
[361079278,1747235438464,-309.88215128,0.00013825,2]
[361079279,1747235438473,-500.0,0.00013825,2]
[361079280,1747235438483,-500.0,0.0001383,2]
[361079281,1747235438492,-503.3401353,0.0001385,2]
[361079282,1747235438501,-1468.0766994,0.0001388,2]
[361079283,1747235438510,-274.0,0.00013902,2]
[361079284,1747235438520,-420.0,0.00013902,2]
[361079286,1747235438530,-1680.0,0.0001394,2]
[361079288,1747235438540,-400.0,0.00013972,2]
[361079290,1747235438549,-5054.31,0.00013972,2]
[361079291,1747235438558,-400.0,0.00013972,2]
[361079293,1747235438568,-500.0,0.00013973,2]
[361079295,1747235438577,-500.0,0.00013978,2]
[361079297,1747235438586,-400.0,0.00014246,2]
[361079299,1747235438595,-5054.31,0.00014246,2]
[361079300,1747235438604,-400.0,0.00014246,2]
[361079302,1747235438613,-500.0,0.00014281,2]
[361079304,1747235438622,-291.9,0.0001452,2]
[361079306,1747235438631,-5054.31,0.0001452,2]
[361079307,1747235438640,-400.0,0.0001452,2]
[361079309,1747235438650,-195.31915517,0.00014661,2]
[361079311,1747235438662,-5054.31,0.00014794,2]
[361079313,1747235438671,-400.0,0.00014794,2]
[361079315,1747235438680,-789.21085195,0.00015068,2]
[361079317,1747235438693,-4265.09914805,0.00015068,2]
[361079318,1747235438702,-400.0,0.00015068,2]
[361079320,1747235438711,-1468.07669938,0.00015285,2]
[361079322,1747235438720,-5054.31,0.00015342,2]
[361079324,1747235438730,-252.07,0.00015342,2]
[361079326,1747235438739,-160.0,0.0001545,2]
[361079328,1747235438748,-160.0,0.00015546,2]
[361079329,1747235438757,-160.0,0.00015546,2]
[361079331,1747235438766,-422.27619506,0.00015546,2]
[361079333,1747235438776,-997.9747837,0.00015546,2]
[361079335,1747235438784,-160.0,0.00015546,2]
[361079337,1747235438794,-212.21045333,0.00015546,2]
[361079339,1747235438802,-160.0,0.00015546,2]
[361079340,1747235438812,-5054.31,0.00015616,2]
[361079342,1747235438821,-5054.31,0.0001589,2]
[361079344,1747235438830,-5054.31,0.00016164,2]
[361079346,1747235438840,-5054.31,0.00016438,2]
[361079348,1747235438852,-1468.07669938,0.0001669,2]
[361079350,1747235438862,-5054.31,0.00016712,2]
[361079351,1747235438871,-195.31915517,0.00016746,2]
[361079353,1747235438880,-500.0,0.00016797,2]
[361079355,1747235438891,-500.0,0.00016797,2]
[361079357,1747235438900,-5054.31,0.00016986,2]
[361079359,1747235438912,-5054.31,0.0001726,2]
[361079361,1747235438928,-5054.31,0.00017534,2]
[361079362,1747235438939,-5054.31,0.00017808,2]
[361079364,1747235438948,-22981.83440773,0.00018081,3]
[361079366,1747235438957,-140059.56995521,0.00018082,2]
[361079368,1747235438970,-102672.75680628,0.00018082,2]
[361079370,1747235438979,-5054.31,0.00018082,2]
[361079372,1747235438988,-1468.07669938,0.00018095,2]
[361079374,1747235438998,-4480.7966038,0.00018231,3]
[361079375,1747235439008,-212.21045333,0.00018231,3]
[361079377,1747235439018,-997.9747837,0.00018231,3]
[361079379,1747235439028,-207.4,0.00018348,2]
[361079381,1747235439038,-2715.5,0.00018356,2]
[361079383,1747235439048,-2715.5,0.00018356,2]
[361079385,1747235439058,-2715.5,0.00018356,2]
[361079387,1747235439067,-2715.5,0.00018356,2]
[361079389,1747235439076,-2715.5,0.00018356,2]
[361079390,1747235439086,-2715.5,0.00018356,2]
[361079392,1747235439095,-2715.5,0.00018356,2]
[361079393,1747235439104,-5054.31,0.00018356,2]
[361079394,1747235439114,-5054.31,0.0001863,2]
[361079396,1747235439123,-416.542,0.00018796,2]
[361079397,1747235439133,-404.0,0.000188,2]
[361079399,1747235439142,-195.31915517,0.00018832,2]
[361079401,1747235439154,-216.28197065,0.000189,2]
[361079403,1747235439163,-1207.142,0.00018901,7]
[361079404,1747235439173,-5054.31,0.00018904,2]
[361079405,1747235439183,-500.0,0.0001898,2]
[361079406,1747235439192,-1000.0,0.00019,19]
[361079407,1747235439202,-151.0,0.000191,2]
[361079408,1747235439211,-151.0,0.000191,2]
[361079409,1747235439220,-5054.31,0.00019178,2]
[361079410,1747235439229,-155.0,0.00019178,2]
[361079411,1747235439239,-151.0,0.000192,2]
[361079412,1747235439248,-151.0,0.000193,2]
[361079413,1747235439258,-500.0,0.0001933,2]
[361079414,1747235439267,-439.75819794,0.0001933,2]
[361079415,1747235439276,-151.0,0.000194,2]
[361079416,1747235439285,-5054.31,0.00019452,2]
[361079417,1747235439294,-50000.0,0.000195,2]
[361079418,1747235439304,-151.0,0.000195,2]
[361079419,1747235439313,-151.0,0.000195,2]
[361079420,1747235439322,-165.993112,0.000195,2]
[361079421,1747235439331,-1468.07669938,0.000195,2]
[361079422,1747235439341,-151.0,0.000195,2]
[361079423,1747235439350,-151.0,0.000195,2]
[361079424,1747235439359,-154.59591,0.000195,2]
[361079425,1747235439368,-151.0,0.000195,2]
[361079426,1747235439378,-50000.0,0.000196,2]
[361079427,1747235439388,-151.0,0.000196,2]
[361079428,1747235439397,-151.0,0.000196,2]
[361079429,1747235439408,-2531.364655,0.000196,2]
[361079430,1747235439417,-2531.364655,0.000196,2]
[361079431,1747235439427,-151.0,0.000196,2]
[361079432,1747235439436,-46033.0,0.000197,2]
[361079433,1747235439445,-151.0,0.000197,2]
[361079434,1747235439455,-151.0,0.000197,2]
[361079435,1747235439464,-151.0,0.000197,2]
[361079436,1747235439473,-151.0,0.000197,2]
[361079437,1747235439482,-151.0,0.000197,2]
[361079438,1747235439492,-151.0,0.000197,2]
[361079439,1747235439501,-151.0,0.00019726,2]
[361079440,1747235439510,-151.0,0.00019726,2]
[361079441,1747235439520,-5054.31,0.00019726,2]
[361079442,1747235439529,-2796.8930741,0.0001973,2]
[361079443,1747235439539,-2718.94567357,0.000198,2]
[361079444,1747235439550,-36418.48066026,0.00019828,2]
[361079445,1747235439559,-158836.77763192,0.0001983,2]
[361079446,1747235439572,-457221.03489612,0.0001983,2]
[361079447,1747235439581,-309.586238,0.0001983,2]
[361079448,1747235439590,-309.586238,0.0001983,2]
[361079449,1747235439599,-309.586238,0.0001983,2]
[361079450,1747235439609,-151.0,0.0001983,2]
[361079451,1747235439618,-154.810056,0.0001983,2]
[361079452,1747235439627,-151.0,0.0001983,2]
[361079453,1747235439637,-295.301443,0.0001983,2]
[361079454,1747235439646,-151.0,0.0001983,2]
[361079455,1747235439657,-500.0,0.0001983,2]
[361079456,1747235439666,-151.0,0.0001983,2]
[361079457,1747235439675,-500.0,0.0001983,2]
[361079458,1747235439685,-151.0,0.0001983,2]
[361079459,1747235439694,-2531.364655,0.0001983,2]
[361079460,1747235439703,-2531.364655,0.0001983,2]
[361079461,1747235439713,-151.0,0.0001983,2]
[361079462,1747235439722,-151.0,0.0001983,2]
[361079463,1747235439731,-151.0,0.0001983,2]
[361079464,1747235439742,-500.0,0.00019972,2]
[361079465,1747235439751,-500.0,0.00019972,2]
[361079466,1747235439760,-500.0,0.00019972,2]
[361079467,1747235439769,-541.67798468,0.00019972,2]
[361079468,1747235439779,-500.0,0.00019973,2]
[361079469,1747235439788,-152.14,0.0002,20]
[361079470,1747235439798,-1000.0,0.0002,20]
[361079471,1747235439807,-5197.0,0.0002,7]
[361079472,1747235439816,-27899.43131235,0.0002,2]
[361079483,1747235441100,-3330.67348059,0.000149,2]
[361079655,1747235446720,-318.11937134,0.000149,2]
[361079657,1747235446729,-3648.79285182,0.00015348,2]
[361079659,1747235446739,-3648.79285182,0.00015797,2]
[361079661,1747235446748,-3648.79285182,0.00016245,2]
[361079663,1747235446757,-3648.79285182,0.00016693,2]
[361079665,1747235446766,-3648.79285182,0.00017141,2]
[361079667,1747235446777,-3648.79285182,0.0001759,2]
[361079669,1747235446786,-3648.79285182,0.00018038,2]
[361079671,1747235446797,-3648.79285182,0.00018486,2]
[361079673,1747235446806,-3648.79285182,0.00018934,2]
[361079675,1747235446816,-3648.79285182,0.00019383,2]
[361079677,1747235446825,-195.209824,0.000195,2]
[361079679,1747235446834,-195.209824,0.000195,2]
[361079681,1747235446844,-755.4,0.00019561,7]
[361079683,1747235446857,-195.209824,0.00019726,2]
[361079685,1747235446866,-195.209824,0.00019726,2]
[361079687,1747235446875,-195.209824,0.0001983,2]
[361079689,1747235446884,-195.209824,0.0001983,2]
[361079691,1747235446894,-3648.79285182,0.00019831,2]
[361079693,1747235446903,-121295.3991445,0.0002,2]
[361079695,1747235446917,-50326.26038827,0.0002,2]
[361079698,1747235446928,-385.828285,0.0002,2]
[361079700,1747235446937,-385.828285,0.0002,2]
[361079702,1747235446947,-16547.85160642,0.0002,30]
[361079704,1747235446957,-285.626415,0.0002,2]
[361079706,1747235446967,-151.0,0.0002,2]
[361079708,1747235446977,-151.0,0.0002,2]
[361079710,1747235446986,-151.0,0.0002,2]
[361079712,1747235446996,-211.723556,0.0002,2]
[361079714,1747235447005,-211.723556,0.0002,2]
[361079716,1747235447015,-151.0,0.0002,2]
[361079718,1747235447024,-151.0,0.0002,2]
[361079720,1747235447034,-151.0,0.0002,2]
[361079722,1747235447044,-151.0,0.0002,2]
[361079724,1747235447054,-157.8,0.0002,2]
[361079726,1747235447064,-2531.364655,0.0002,2]
[361079728,1747235447073,-2531.364655,0.0002,2]
[361079730,1747235447083,-160.0,0.0002,3]
[361079732,1747235447095,-212.21045333,0.0002,30]
[361079734,1747235447104,-314.30604044,0.0002,30]
[361079736,1747235447113,-151.0,0.0002,2]
[361079738,1747235447123,-151.0,0.0002,2]
[361079740,1747235447132,-997.9747837,0.0002,30]
[361079742,1747235447142,-151.0,0.0002,2]
[361079744,1747235447151,-5054.41758439,0.0002,2]
[361079746,1747235447162,-2082.5274307,0.0002,4]
[361079748,1747235447173,-195.209824,0.0002,2]
[361079750,1747235447183,-155.355,0.00020017,2]
[361079752,1747235447192,-549.572,0.00020017,2]
[361079754,1747235447202,-2238.0,0.00020017,2]
[361079756,1747235447212,-706.0,0.00020017,2]
[361079758,1747235447221,-822.47606909,0.00020111,2]
[361079760,1747235447230,-418.436577,0.00020187,2]
[361079762,1747235447240,-3648.79285182,0.00020279,3]
[361079764,1747235447249,-160.0,0.0002042,3]
[361079766,1747235447259,-700.0,0.000205,4]
[361079768,1747235447270,-1000.0,0.00020521,2]
[361079770,1747235447279,-3648.79285182,0.00020728,3]
[361079771,1747235447289,-160.0,0.00020882,4]
[361079772,1747235447298,-195.31915517,0.00020917,2]
[361079773,1747235447308,-1000.0,0.00021,21]
[361079774,1747235447317,-508.53272994,0.00021068,2]
[361079775,1747235447328,-3648.79285182,0.00021176,4]
[361079776,1747235447337,-359.8946661,0.00021342,2]
[361079777,1747235447347,-363.1221292,0.00021342,2]
[361079778,1747235447356,-363.1221292,0.00021342,2]
[361079779,1747235447366,-726.1090244,0.00021342,2]
[361079780,1747235447375,-363.1221292,0.00021342,2]
[361079781,1747235447385,-352.553239,0.00021342,2]
[361079782,1747235447395,-160.0,0.00021344,5]
[361079783,1747235447404,-3648.79285182,0.00021624,5]
[361079784,1747235447414,-160.0,0.00021806,6]
[361079785,1747235447424,-1159.1076991,0.00021836,2]
[361079786,1747235447433,-309.586238,0.00021918,7]
[361079787,1747235447443,-309.586238,0.00021918,7]
[361079788,1747235447452,-500.0,0.00021918,2]
[361079789,1747235447461,-500.0,0.00021918,2]
[361079790,1747235447471,-500.0,0.00021918,2]
[361079792,1747235447480,-500.0,0.00021918,2]
[361079793,1747235447489,-500.0,0.00021918,2]
[361079794,1747235447498,-500.0,0.00021918,2]
[361079796,1747235447508,-500.0,0.00021918,2]
[361079798,1747235447517,-500.0,0.00021918,2]
[361079800,1747235447526,-500.0,0.00021918,2]
[361079802,1747235447535,-500.0,0.00021918,2]
[361079804,1747235447544,-500.0,0.00021918,2]
[361079806,1747235447554,-500.0,0.00021918,2]
[361079808,1747235447564,-500.0,0.00021918,2]
[361079810,1747235447573,-500.0,0.00021918,2]
[361079812,1747235447582,-500.0,0.00021918,2]
[361079814,1747235447592,-500.0,0.00021918,2]
[361079816,1747235447601,-500.0,0.00021918,2]
[361079818,1747235447611,-500.0,0.00021918,2]
[361079820,1747235447620,-500.0,0.00021918,2]
[361079822,1747235447629,-500.0,0.00021918,2]
[361079824,1747235447638,-221.80759961,0.00021918,2]
[361079826,1747235447647,-500.0,0.00021918,2]
[361079828,1747235447657,-1000.0,0.00022,22]
[361079830,1747235447666,-3648.79285182,0.00022072,6]
[361079832,1747235447675,-151.0,0.00022107,7]
[361079834,1747235447684,-195.209824,0.00022107,7]
[361079836,1747235447694,-153.0,0.00022164,2]
[361079838,1747235447703,-201.9475477,0.00022164,2]
[361079840,1747235447712,-153.0,0.00022164,2]
[361079842,1747235447722,-157.9553211,0.00022164,2]
[361079844,1747235447731,-157.9553211,0.00022164,2]
[361079846,1747235447741,-153.0,0.00022164,2]
[361079848,1747235447750,-160.0,0.00022267,7]
[361079850,1747235447759,-3648.79285182,0.00022521,7]
[361079852,1747235447769,-151.0,0.000226,7]
[361079854,1747235447778,-160.0,0.000226,7]
[361079856,1747235447787,-212.21045333,0.000226,7]
[361079858,1747235447796,-997.9747837,0.000226,7]
[361079860,1747235447805,-9221.66395721,0.0002267,2]
[361079862,1747235447815,-160.0,0.00022729,8]
[361079864,1747235447824,-10397.21743098,0.0002277,2]
[361079866,1747235447833,-309.586238,0.0002277,7]
[361079868,1747235447843,-309.586238,0.0002277,7]
[361079870,1747235447856,-151.0,0.0002277,7]
[361079872,1747235447865,-230.075229,0.0002289,7]
[361079874,1747235447875,-151.0,0.0002289,7]
[361079876,1747235447884,-364.27832248,0.00022898,2]
[361079878,1747235447895,-151.0,0.00022969,7]
[361079880,1747235447905,-167592.51138021,0.0002299,7]
[361079883,1747235447923,-9709.44996267,0.0002299,7]
[361080134,1747235526640,-155.0,0.00013279,2]
[361080138,1747236039303,-272.0302889,0.00012698,2]
[361080140,1747236040881,-160.0,0.00012698,2]
[361080141,1747236043053,-160.0,0.00012698,2]
[361080142,1747236045362,-160.0,0.00012698,2]
[361080143,1747236046996,-212.21045333,0.00012698,2]
[361080144,1747236051209,-160.0,0.00012698,2]
[361080145,1747236053670,-269.8451427,0.00012698,2]
[361080199,1747236632817,-720.4,0.00012597,2]
[361080245,1747236638620,-434.81370448,0.00012597,2]
[361080252,1747236638681,-1185.26843574,0.00012597,2]
[361080254,1747236638691,-300.0,0.00012694,2]
[361080256,1747236638701,-234.0,0.00012695,2]
[361080258,1747236638710,-300.0,0.00012695,2]
[361080260,1747236638719,-160.11990283,0.00012695,2]
[361080277,1747236638872,-745.10319183,0.00012695,2]
[361080502,1747236641313,-0.00350701,0.00012695,2]
[361080540,1747236641659,-294.77339833,0.00012695,2]
[361080542,1747236641669,-300.0,0.00012695,2]
[361080545,1747236641680,-250.0,0.00012697,2]
[361080547,1747236641690,-500.0,0.00012697,2]
[361080549,1747236641699,-500.0,0.00012697,2]
[361080550,1747236641708,-471.73801573,0.00012697,2]
[361080552,1747236641718,-500.0,0.00012697,2]
[361080554,1747236641729,-500.0,0.00012697,2]
[361080556,1747236641739,-500.0,0.00012697,2]
[361080558,1747236641748,-500.0,0.00012697,2]
[361080560,1747236641758,-275.62456622,0.00012697,2]
[361080563,1747236641768,-181.311758,0.00012698,2]
[361080566,1747236641778,-23505.91411507,0.00012698,2]
[361080567,1747236641789,-186.52663728,0.000129,2]
[361080570,1747236641799,-27968.22173546,0.000135,2]
[361080853,1747236645598,-269.84486432,0.00012695,2]
[361080954,1747237832408,-205.6858458,0.00011587,2]
[361080956,1747237832417,-57.39332607,0.00011771,2]
[361080959,1747237832440,-596.01968633,0.00011771,2]
[361080960,1747237832450,-300.0,0.00012374,2]
[361080961,1747237832461,-500.0,0.00012375,2]
[361080962,1747237832471,-180.21661101,0.00012375,2]
[361080963,1747237832480,-300.0,0.00012375,2]
[361080964,1747237832490,-286.0,0.00012375,2]
[361080965,1747237832500,-300.0,0.00012375,2]
[361080966,1747237832510,-300.0,0.00012375,2]
[361080967,1747237832520,-1200.0,0.00012375,2]
[361080968,1747237832529,-15632.69347701,0.00012376,2]
[361081232,1747237840435,-224.60304986,0.00012375,2]
[361081234,1747237840444,-500.0,0.00012375,2]
[361081236,1747237840454,-500.0,0.00012375,2]
[361081238,1747237840464,-500.0,0.00012375,2]
[361081240,1747237840474,-500.0,0.00012375,2]
[361081242,1747237840484,-500.0,0.00012375,2]
[361081244,1747237840494,-239.33664308,0.00012375,2]
[361081246,1747237840504,-322.62718443,0.00012375,2]
[361081248,1747237840514,-500.0,0.00012375,2]
[361081250,1747237840523,-500.0,0.00012375,2]
[361081252,1747237840533,-500.0,0.00012375,2]
[361081254,1747237840543,-500.0,0.00012375,2]
[361081256,1747237840552,-9989.26496355,0.00012376,2]
[361081258,1747237840562,-24900.0,0.00012379,2]
[361081260,1747237840571,-186.52663727,0.000129,2]
[361081262,1747237840580,-500.0,0.00013255,2]
[361081264,1747237840590,-408.36227071,0.00013255,2]